[Event "*** Titled Tuesday Blitz"]
[Site "Chess.com"]
[Date "2021.03.09"]
[Round "7"]
[White "PopMilan95"]
[Black "CakeinSpace2002"]
[Result "1-0"]
[WhiteElo "2607"]
[BlackElo "2417"]
[TimeControl "180+1"]
[EndTime "11:23:02 PST"]
[Termination "PopMilan95 won on time"]

1. e4 {[%clk 0:03:00.9]} 1... d5 {[%clk 0:02:52.2]} 2. exd5 {[%clk 0:03:00.2]}
2... Qxd5 {[%clk 0:02:50.7]} 3. Nc3 {[%clk 0:02:59.9]} 3... Qd8 {[%clk 0:02:51]}
4. d4 {[%clk 0:02:56.3]} 4... Nf6 {[%clk 0:02:50.5]} 5. Nf3 {[%clk 0:02:53.4]}
5... Bg4 {[%clk 0:02:48.9]} 6. h3 {[%clk 0:02:49.4]} 6... Bxf3 {[%clk
0:02:48.2]} 7. Qxf3 {[%clk 0:02:50.3]} 7... c6 {[%clk 0:02:48.6]} 8. Be3 {[%clk
0:02:48.2]} 8... e6 {[%clk 0:02:48.3]} 9. O-O-O {[%clk 0:02:46.8]} 9... Qa5
{[%clk 0:02:35]} 10. Kb1 {[%clk 0:02:46.4]} 10... Nbd7 {[%clk 0:02:33.4]} 11. g4
{[%clk 0:02:43.1]} 11... Bb4 {[%clk 0:02:12.4]} 12. Ne4 {[%clk 0:02:41.9]} 12...
Nxe4 {[%clk 0:02:07.8]} 13. Qxe4 {[%clk 0:02:42.8]} 13... Nf6 {[%clk 0:02:07.8]}
14. Qf3 {[%clk 0:02:42.5]} 14... Nd5 {[%clk 0:02:06.7]} 15. Bc1 {[%clk
0:02:37.4]} 15... b5 {[%clk 0:01:54.9]} 16. g5 {[%clk 0:02:24.4]} 16... Bd6
{[%clk 0:01:43]} 17. h4 {[%clk 0:02:17.5]} 17... Rb8 {[%clk 0:01:32.5]} 18. h5
{[%clk 0:02:06.9]} 18... Nb4 {[%clk 0:01:26.1]} 19. Qb3 {[%clk 0:01:27.3]} 19...
Nd5 {[%clk 0:01:24.4]} 20. Ka1 {[%clk 0:01:17.2]} 20... Qc7 {[%clk 0:01:21.7]}
21. Qf3 {[%clk 0:01:14]} 21... a5 {[%clk 0:01:11.1]} 22. g6 {[%clk 0:01:13.1]}
22... hxg6 {[%clk 0:00:56.1]} 23. hxg6 {[%clk 0:01:12.5]} 23... Rxh1 {[%clk
0:00:52.4]} 24. Qxh1 {[%clk 0:01:11]} 24... f6 {[%clk 0:00:49.3]} 25. Qe4 {[%clk
0:01:09.9]} 25... Kd7 {[%clk 0:00:44.7]} 26. Bh3 {[%clk 0:01:05.1]} 26... Re8
{[%clk 0:00:41.8]} 27. Re1 {[%clk 0:01:04]} 27... Kd8 {[%clk 0:00:37.8]} 28.
Bxe6 {[%clk 0:00:48.7]} 28... Bf4 {[%clk 0:00:33.2]} 29. Be3 {[%clk 0:00:45.8]}
29... Bxe3 {[%clk 0:00:30.7]} 30. fxe3 {[%clk 0:00:42.7]} 30... Qd6 {[%clk
0:00:30.7]} 31. Qd3 {[%clk 0:00:38.8]} 31... Qxe6 {[%clk 0:00:30]} 32. Qd2
{[%clk 0:00:38.8]} 32... Nb4 {[%clk 0:00:29.9]} 33. b3 {[%clk 0:00:39]} 33...
Nd5 {[%clk 0:00:29.6]} 34. Qxa5+ {[%clk 0:00:38.6]} 34... Ke7 {[%clk 0:00:28.7]}
35. e4 {[%clk 0:00:36.6]} 35... Kd7 {[%clk 0:00:25.4]} 36. Kb2 {[%clk
0:00:33.5]} 36... Nc7 {[%clk 0:00:23.2]} 37. Qa7 {[%clk 0:00:28.6]} 37... f5
{[%clk 0:00:22.7]} 38. d5 {[%clk 0:00:27.4]} 38... cxd5 {[%clk 0:00:22]} 39. e5
{[%clk 0:00:26.3]} 39... f4 {[%clk 0:00:19.5]} 40. Qd4 {[%clk 0:00:24.6]} 40...
Qf5 {[%clk 0:00:19]} 41. a4 {[%clk 0:00:18.7]} 41... bxa4 {[%clk 0:00:17.8]} 42.
Qxa4+ {[%clk 0:00:18.7]} 42... Kd8 {[%clk 0:00:16.4]} 43. Qa3 {[%clk 0:00:14.3]}
43... Qe6 {[%clk 0:00:13]} 44. Qa7 {[%clk 0:00:12.4]} 44... f3 {[%clk
0:00:12.3]} 45. Re3 {[%clk 0:00:11.4]} 45... f2 {[%clk 0:00:11]} 46. Rc3 {[%clk
0:00:10.5]} 46... Qxe5 {[%clk 0:00:10.3]} 47. Qxf2 {[%clk 0:00:08.7]} 47... Ne6
{[%clk 0:00:09.7]} 48. Qb6+ {[%clk 0:00:08.1]} 48... Ke7 {[%clk 0:00:09.4]} 49.
Qb4+ {[%clk 0:00:08]} 49... Kf6 {[%clk 0:00:09.1]} 50. Kb1 {[%clk 0:00:08.3]}
50... Kxg6 {[%clk 0:00:09]} 51. Rd3 {[%clk 0:00:07]} 51... Nf4 {[%clk
0:00:08.4]} 52. Rg3+ {[%clk 0:00:06.9]} 52... Kf6 {[%clk 0:00:07.8]} 53. Qb6+
{[%clk 0:00:05.6]} 53... Re6 {[%clk 0:00:07.6]} 54. Qd8+ {[%clk 0:00:05.7]}
54... Kf7 {[%clk 0:00:06.9]} 55. Qd7+ {[%clk 0:00:02.4]} 55... Re7 {[%clk
0:00:07]} 56. Qg4 {[%clk 0:00:02.8]} 56... Qe1+ {[%clk 0:00:05.8]} 57. Kb2
{[%clk 0:00:02.8]} 57... Ne6 {[%clk 0:00:05.5]} 58. Rf3+ {[%clk 0:00:02.4]}
58... Ke8 {[%clk 0:00:05.3]} 59. Qa4+ {[%clk 0:00:02.8]} 59... Kd8 {[%clk
0:00:03.2]} 60. Qa8+ {[%clk 0:00:03.1]} 60... Kd7 {[%clk 0:00:03.4]} 61. Qxd5+
{[%clk 0:00:03.6]} 61... Ke8 {[%clk 0:00:02.9]} 62. Qc6+ {[%clk 0:00:03.8]}
62... Kd8 {[%clk 0:00:02.2]} 63. Rd3+ {[%clk 0:00:03.6]} 1-0

[Event "*** Titled Tuesday Blitz"]
[Site "Chess.com"]
[Date "2021.03.09"]
[Round "7"]
[White "NovikovaGalina"]
[Black "SF-96"]
[Result "0-1"]
[WhiteElo "2406"]
[BlackElo "2543"]
[TimeControl "180+1"]
[EndTime "11:23:02 PST"]
[Termination "SF-96 won on time"]

1. e4 {[%clk 0:03:00.9]} 1... e5 {[%clk 0:02:59.1]} 2. Nf3 {[%clk 0:03:00.5]}
2... Nc6 {[%clk 0:02:59.1]} 3. d4 {[%clk 0:03:01.2]} 3... exd4 {[%clk
0:02:59.1]} 4. Nxd4 {[%clk 0:03:02.1]} 4... Bc5 {[%clk 0:02:59.7]} 5. Nb3 {[%clk
0:03:02.1]} 5... Bb6 {[%clk 0:02:59.8]} 6. Nc3 {[%clk 0:03:02.8]} 6... d6 {[%clk
0:03:00.3]} 7. Qe2 {[%clk 0:03:03.4]} 7... Nge7 {[%clk 0:03:00.5]} 8. Be3 {[%clk
0:03:03.9]} 8... O-O {[%clk 0:03:01.2]} 9. O-O-O {[%clk 0:03:03.5]} 9... f5
{[%clk 0:03:00.8]} 10. f3 {[%clk 0:03:03.7]} 10... fxe4 {[%clk 0:02:48.7]} 11.
fxe4 {[%clk 0:03:04.6]} 11... Ng6 {[%clk 0:02:38.1]} 12. h4 {[%clk 0:02:44.7]}
12... Bxe3+ {[%clk 0:02:13]} 13. Qxe3 {[%clk 0:02:44.1]} 13... Bg4 {[%clk
0:02:13.7]} 14. Bc4+ {[%clk 0:02:38.3]} 14... Kh8 {[%clk 0:02:12.3]} 15. Rdf1
{[%clk 0:02:37]} 15... Nce5 {[%clk 0:02:00.7]} 16. Be2 {[%clk 0:02:24.1]} 16...
Rxf1+ {[%clk 0:01:49.6]} 17. Bxf1 {[%clk 0:02:15.6]} 17... Nxh4 {[%clk
0:01:34.2]} 18. Qg3 {[%clk 0:01:58.1]} 18... Nhg6 {[%clk 0:01:29]} 19. Nd4
{[%clk 0:01:46.5]} 19... Qg5+ {[%clk 0:01:18.5]} 20. Kb1 {[%clk 0:01:45.8]}
20... Qf4 {[%clk 0:01:08.9]} 21. Qe1 {[%clk 0:01:38.8]} 21... Rf8 {[%clk
0:00:58.7]} 22. Nd5 {[%clk 0:01:25.9]} 22... Qf7 {[%clk 0:00:58.2]} 23. a3
{[%clk 0:01:06]} 23... c6 {[%clk 0:00:52.9]} 24. Ne3 {[%clk 0:01:05.7]} 24...
Qf2 {[%clk 0:00:46.4]} 25. Qc3 {[%clk 0:00:56.9]} 25... Bc8 {[%clk 0:00:38.6]}
26. Nef5 {[%clk 0:00:50.5]} 26... c5 {[%clk 0:00:30.9]} 27. Qh3 {[%clk
0:00:42.6]} 27... h6 {[%clk 0:00:28]} 28. Nf3 {[%clk 0:00:25.5]} 28... Nxf3
{[%clk 0:00:24]} 29. gxf3 {[%clk 0:00:26.4]} 29... Bxf5 {[%clk 0:00:20.5]} 30.
exf5 {[%clk 0:00:27.3]} 30... Ne5 {[%clk 0:00:20.8]} 31. Bg2 {[%clk 0:00:16.1]}
31... Qe3 {[%clk 0:00:20.7]} 32. Qh4 {[%clk 0:00:13.9]} 32... Rf6 {[%clk
0:00:18.1]} 33. Qh5 {[%clk 0:00:13.3]} 33... Nc4 {[%clk 0:00:15.8]} 34. Rh4
{[%clk 0:00:06.9]} 34... Nd2+ {[%clk 0:00:12.5]} 35. Ka2 {[%clk 0:00:06.9]}
35... Qe1 {[%clk 0:00:13]} 36. Rh1 {[%clk 0:00:05.3]} 36... Qe2 {[%clk
0:00:13.5]} 37. Bh3 {[%clk 0:00:01.8]} 37... Qc4+ {[%clk 0:00:13.8]} 38. Ka1
{[%clk 0:00:01.2]} 38... Qxc2 {[%clk 0:00:14.1]} 39. Ka2 {[%clk 0:00:02.1]}
39... Qc4+ {[%clk 0:00:12.6]} 40. Ka1 {[%clk 0:00:03]} 40... Nb3+ {[%clk
0:00:12.7]} 41. Kb1 {[%clk 0:00:03.2]} 41... Qd3+ {[%clk 0:00:10.2]} 42. Ka2
{[%clk 0:00:04.1]} 42... Nd4 {[%clk 0:00:10]} 43. Qe8+ {[%clk 0:00:04.9]} 43...
Kh7 {[%clk 0:00:10.1]} 44. Qe4 {[%clk 0:00:05.8]} 44... Qxe4 {[%clk 0:00:10.1]}
45. fxe4 {[%clk 0:00:06.7]} 45... Nc6 {[%clk 0:00:09.9]} 46. Rd1 {[%clk
0:00:07.1]} 46... Ne5 {[%clk 0:00:10.4]} 47. Rd5 {[%clk 0:00:07.1]} 47... g5
{[%clk 0:00:10.2]} 48. b4 {[%clk 0:00:07.4]} 48... g4 {[%clk 0:00:10.4]} 49.
bxc5 {[%clk 0:00:07.1]} 49... gxh3 {[%clk 0:00:10.3]} 50. cxd6 {[%clk
0:00:06.1]} 50... Nd7 {[%clk 0:00:09.2]} 51. e5 {[%clk 0:00:05.3]} 51... h2
{[%clk 0:00:07.7]} 52. e6 {[%clk 0:00:03.7]} 52... h1=Q {[%clk 0:00:06.3]} 53.
exd7 {[%clk 0:00:04.6]} 53... Rf8 {[%clk 0:00:06.5]} 54. Re5 {[%clk 0:00:03.4]}
54... Rd8 {[%clk 0:00:06.8]} 55. Re7+ {[%clk 0:00:04]} 55... Kg8 {[%clk
0:00:06.3]} 56. f6 {[%clk 0:00:04.3]} 56... Qd5+ {[%clk 0:00:06]} 57. Ka1 {[%clk
0:00:04.3]} 57... Qd4+ {[%clk 0:00:04.5]} 58. Ka2 {[%clk 0:00:03.4]} 58... Qxf6
{[%clk 0:00:05.4]} 59. Re8+ {[%clk 0:00:03.4]} 59... Kf7 {[%clk 0:00:05.9]} 60.
Re7+ {[%clk 0:00:03.7]} 60... Qxe7 {[%clk 0:00:06.1]} 61. dxe7 {[%clk
0:00:04.6]} 61... Kxe7 {[%clk 0:00:07]} 0-1

[Event "*** Titled Tuesday Blitz"]
[Site "Chess.com"]
[Date "2021.03.09"]
[Round "7"]
[White "Elshan1985"]
[Black "Thjop"]
[Result "1/2-1/2"]
[WhiteElo "2881"]
[BlackElo "2674"]
[TimeControl "180+1"]
[EndTime "11:23:11 PST"]
[Termination "Game drawn - insufficient material"]

1. d4 {[%clk 0:03:00.9]} 1... Nf6 {[%clk 0:02:59.9]} 2. c4 {[%clk 0:03:00.6]}
2... g6 {[%clk 0:03:00]} 3. Nc3 {[%clk 0:03:00.1]} 3... Bg7 {[%clk 0:03:00.3]}
4. e4 {[%clk 0:02:59.5]} 4... d6 {[%clk 0:03:00.7]} 5. Bd3 {[%clk 0:02:59.8]}
5... O-O {[%clk 0:03:00.4]} 6. Nge2 {[%clk 0:03:00.1]} 6... e5 {[%clk
0:03:00.3]} 7. d5 {[%clk 0:03:00.2]} 7... a5 {[%clk 0:03:00.8]} 8. Ng3 {[%clk
0:02:58.6]} 8... Na6 {[%clk 0:02:56.9]} 9. Bc2 {[%clk 0:02:58]} 9... h5 {[%clk
0:02:53]} 10. Bg5 {[%clk 0:02:56.1]} 10... Qe8 {[%clk 0:02:49.1]} 11. Qd2 {[%clk
0:02:55.1]} 11... Nh7 {[%clk 0:02:47.2]} 12. Bh6 {[%clk 0:02:53.2]} 12... h4
{[%clk 0:02:32.3]} 13. Nf1 {[%clk 0:02:52.4]} 13... f5 {[%clk 0:02:26.6]} 14. g3
{[%clk 0:02:45]} 14... h3 {[%clk 0:02:19.9]} 15. Bxg7 {[%clk 0:02:41.8]} 15...
Kxg7 {[%clk 0:02:19.6]} 16. exf5 {[%clk 0:02:42.2]} 16... gxf5 {[%clk
0:02:16.6]} 17. O-O-O {[%clk 0:02:42.1]} 17... Qh5 {[%clk 0:02:09.4]} 18. f4
{[%clk 0:02:40.9]} 18... Nf6 {[%clk 0:02:00]} 19. Ne3 {[%clk 0:02:39.3]} 19...
e4 {[%clk 0:01:42.7]} 20. Rde1 {[%clk 0:02:28.5]} 20... Bd7 {[%clk 0:01:39.2]}
21. Bd1 {[%clk 0:02:21.5]} 21... Qg6 {[%clk 0:01:34.9]} 22. Rhg1 {[%clk
0:02:20.9]} 22... Nc5 {[%clk 0:01:32.8]} 23. Be2 {[%clk 0:02:20.6]} 23... Rg8
{[%clk 0:01:31.6]} 24. Qd4 {[%clk 0:02:14.7]} 24... Kf7 {[%clk 0:01:31.2]} 25.
Ref1 {[%clk 0:02:07.4]} 25... Rae8 {[%clk 0:01:29.9]} 26. Ncd1 {[%clk
0:02:05.5]} 26... Ke7 {[%clk 0:01:27.5]} 27. Nf2 {[%clk 0:02:05.1]} 27... Ng4
{[%clk 0:01:21.4]} 28. Nfxg4 {[%clk 0:01:59.3]} 28... fxg4 {[%clk 0:01:21.9]}
29. f5 {[%clk 0:01:58.6]} 29... Qf6 {[%clk 0:01:21.6]} 30. Qxf6+ {[%clk
0:01:58.2]} 30... Kxf6 {[%clk 0:01:22.5]} 31. Nxg4+ {[%clk 0:01:58.4]} 31... Kg5
{[%clk 0:01:15.9]} 32. Ne3 {[%clk 0:01:55.9]} 32... Re5 {[%clk 0:01:11.5]} 33.
Kd2 {[%clk 0:01:55.3]} 33... c6 {[%clk 0:01:09.7]} 34. dxc6 {[%clk 0:01:54.6]}
34... bxc6 {[%clk 0:01:09.6]} 35. g4 {[%clk 0:01:47.4]} 35... d5 {[%clk
0:01:09.2]} 36. cxd5 {[%clk 0:01:46.5]} 36... cxd5 {[%clk 0:01:10.1]} 37. Nc2
{[%clk 0:01:43.9]} 37... Rb8 {[%clk 0:01:06]} 38. b3 {[%clk 0:01:40.9]} 38... a4
{[%clk 0:00:50]} 39. b4 {[%clk 0:01:38.9]} 39... e3+ {[%clk 0:00:50.4]} 40. Kc3
{[%clk 0:01:36.4]} 40... Nb7 {[%clk 0:00:38.5]} 41. Rg3 {[%clk 0:01:32.7]} 41...
Rc8+ {[%clk 0:00:33.5]} 42. Kb2 {[%clk 0:01:29.9]} 42... Rce8 {[%clk 0:00:25.4]}
43. Rxh3 {[%clk 0:01:27.7]} 43... a3+ {[%clk 0:00:19.5]} 44. Kxa3 {[%clk
0:01:25.6]} 44... Rc8 {[%clk 0:00:16.6]} 45. Rh5+ {[%clk 0:01:21.1]} 45... Kf6
{[%clk 0:00:16.4]} 46. g5+ {[%clk 0:01:21.6]} 46... Kg7 {[%clk 0:00:14.9]} 47.
f6+ {[%clk 0:01:20.2]} 47... Kg8 {[%clk 0:00:14.7]} 48. Nd4 {[%clk 0:01:16.2]}
48... Nd6 {[%clk 0:00:12.9]} 49. Kb2 {[%clk 0:01:09.1]} 49... Re4 {[%clk
0:00:09.9]} 50. g6 {[%clk 0:00:48.2]} 50... Rxd4 {[%clk 0:00:09.8]} 51. f7+
{[%clk 0:00:48.5]} 51... Kg7 {[%clk 0:00:09.2]} 52. Rh7+ {[%clk 0:00:48.7]}
52... Kxg6 {[%clk 0:00:09.6]} 53. f8=N+ {[%clk 0:00:40.8]} 53... Rxf8 {[%clk
0:00:09.1]} 54. Rxd7 {[%clk 0:00:41.3]} 54... Rd2+ {[%clk 0:00:07.9]} 55. Kc3
{[%clk 0:00:41.5]} 55... Ne4+ {[%clk 0:00:07.4]} 56. Kb3 {[%clk 0:00:41.8]}
56... Rxf1 {[%clk 0:00:07.3]} 57. Bxf1 {[%clk 0:00:41.6]} 57... d4 {[%clk
0:00:07.6]} 58. Kc4 {[%clk 0:00:39.2]} 58... Nf6 {[%clk 0:00:04.7]} 59. Bd3+
{[%clk 0:00:38.6]} 59... Kg5 {[%clk 0:00:04.1]} 60. Rxd4 {[%clk 0:00:38.4]}
60... Ng4 {[%clk 0:00:02.1]} 61. h4+ {[%clk 0:00:36.4]} 61... Kxh4 {[%clk
0:00:02.2]} 62. b5 {[%clk 0:00:36.7]} 62... Kg3 {[%clk 0:00:02.7]} 63. b6 {[%clk
0:00:36.6]} 63... Nf2 {[%clk 0:00:03.3]} 64. a4 {[%clk 0:00:34.7]} 64... Nxd3
{[%clk 0:00:03.5]} 65. Rxd3 {[%clk 0:00:34.9]} 65... Rxd3 {[%clk 0:00:03.7]} 66.
Kxd3 {[%clk 0:00:35.2]} 66... Kf2 {[%clk 0:00:04.6]} 67. b7 {[%clk 0:00:35.5]}
67... e2 {[%clk 0:00:05.5]} 68. b8=Q {[%clk 0:00:35.6]} 68... e1=Q {[%clk
0:00:05.7]} 69. Qh2+ {[%clk 0:00:35.4]} 69... Kf3 {[%clk 0:00:05.2]} 70. Qh3+
{[%clk 0:00:35.8]} 70... Kf4 {[%clk 0:00:05.4]} 71. Qh6+ {[%clk 0:00:36.1]}
71... Kf5 {[%clk 0:00:05.5]} 72. Qf8+ {[%clk 0:00:36.3]} 72... Kg6 {[%clk
0:00:05.7]} 73. Qd6+ {[%clk 0:00:36.5]} 73... Kf7 {[%clk 0:00:06]} 74. Qd4
{[%clk 0:00:34.7]} 74... Ke7 {[%clk 0:00:05.4]} 75. Kc4 {[%clk 0:00:34.6]} 75...
Qa5 {[%clk 0:00:03.4]} 76. Qe4+ {[%clk 0:00:31.5]} 76... Kd7 {[%clk 0:00:03.5]}
77. Qh7+ {[%clk 0:00:31.5]} 77... Kc8 {[%clk 0:00:03.6]} 78. Qg8+ {[%clk
0:00:31.5]} 78... Kb7 {[%clk 0:00:03.9]} 79. Kb3 {[%clk 0:00:30.4]} 79... Qb6+
{[%clk 0:00:02.8]} 80. Ka3 {[%clk 0:00:30.5]} 80... Qc5+ {[%clk 0:00:03.1]} 81.
Ka2 {[%clk 0:00:30.3]} 81... Qb4 {[%clk 0:00:03.3]} 82. Qf7+ {[%clk 0:00:30]}
82... Kb6 {[%clk 0:00:03.1]} 83. Qe6+ {[%clk 0:00:29.7]} 83... Ka5 {[%clk
0:00:03.4]} 84. Qb3 {[%clk 0:00:29.7]} 84... Qxa4+ {[%clk 0:00:03.2]} 85. Qxa4+
{[%clk 0:00:30.2]} 85... Kxa4 {[%clk 0:00:04.1]} 1/2-1/2

[Event "*** Titled Tuesday Blitz"]
[Site "Chess.com"]
[Date "2021.03.09"]
[Round "7"]
[White "Deepweb2020"]
[Black "SimplyDevina"]
[Result "1-0"]
[WhiteElo "2474"]
[BlackElo "2209"]
[TimeControl "180+1"]
[EndTime "11:23:17 PST"]
[Termination "Deepweb2020 won on time"]

1. d4 {[%clk 0:03:00.9]} 1... d5 {[%clk 0:02:59.1]} 2. c4 {[%clk 0:02:58.6]}
2... e6 {[%clk 0:02:58.6]} 3. Nf3 {[%clk 0:02:56]} 3... Be7 {[%clk 0:02:58.1]}
4. g3 {[%clk 0:02:56.1]} 4... Nf6 {[%clk 0:02:58.1]} 5. Bg2 {[%clk 0:02:56.4]}
5... O-O {[%clk 0:02:58.6]} 6. O-O {[%clk 0:02:56.3]} 6... Nbd7 {[%clk
0:02:57.3]} 7. Qc2 {[%clk 0:02:54.9]} 7... c6 {[%clk 0:02:51.7]} 8. Nbd2 {[%clk
0:02:54.8]} 8... Qc7 {[%clk 0:02:51.4]} 9. e4 {[%clk 0:02:54.4]} 9... dxe4
{[%clk 0:02:50.7]} 10. Nxe4 {[%clk 0:02:55.3]} 10... Nxe4 {[%clk 0:02:51.5]} 11.
Qxe4 {[%clk 0:02:56.2]} 11... Nf6 {[%clk 0:02:52.4]} 12. Qc2 {[%clk 0:02:55.7]}
12... c5 {[%clk 0:02:45.6]} 13. Bf4 {[%clk 0:02:43.6]} 13... Qb6 {[%clk
0:02:38.6]} 14. dxc5 {[%clk 0:02:37.1]} 14... Bxc5 {[%clk 0:02:25]} 15. a3
{[%clk 0:02:36.1]} 15... a5 {[%clk 0:02:22.3]} 16. Ne5 {[%clk 0:02:22.9]} 16...
h6 {[%clk 0:01:22.7]} 17. Rad1 {[%clk 0:02:15.9]} 17... Bd4 {[%clk 0:01:12.9]}
18. Nd3 {[%clk 0:01:48.6]} 18... Nh5 {[%clk 0:00:39.6]} 19. c5 {[%clk
0:01:40.2]} 19... Qa6 {[%clk 0:00:25.6]} 20. Be5 {[%clk 0:01:37.1]} 20... Bxe5
{[%clk 0:00:18.6]} 21. Nxe5 {[%clk 0:01:37.6]} 21... Nf6 {[%clk 0:00:17.3]} 22.
c6 {[%clk 0:01:28.8]} 22... bxc6 {[%clk 0:00:15.9]} 23. Nxc6 {[%clk 0:01:19.6]}
23... Bb7 {[%clk 0:00:14.1]} 24. Rd6 {[%clk 0:01:13.4]} 24... Bxc6 {[%clk
0:00:04]} 25. Rxc6 {[%clk 0:01:08]} 25... Rac8 {[%clk 0:00:04.3]} 26. Rc1 {[%clk
0:00:53.7]} 26... Rxc6 {[%clk 0:00:04.5]} 27. Qxc6 {[%clk 0:00:53.8]} 27... Qxc6
{[%clk 0:00:04.8]} 28. Rxc6 {[%clk 0:00:54.3]} 28... Rb8 {[%clk 0:00:05.5]} 29.
Rc2 {[%clk 0:00:51.1]} 29... Kf8 {[%clk 0:00:06]} 30. a4 {[%clk 0:00:45.5]}
30... Rb4 {[%clk 0:00:05.4]} 31. Bc6 {[%clk 0:00:43.6]} 31... Ke7 {[%clk
0:00:04]} 32. Bb5 {[%clk 0:00:43.6]} 32... Nd5 {[%clk 0:00:04.4]} 33. Kf1 {[%clk
0:00:40.2]} 33... Kf6 {[%clk 0:00:05]} 34. Ke2 {[%clk 0:00:37.6]} 34... Nb6
{[%clk 0:00:05.5]} 35. Rc7 {[%clk 0:00:31.8]} 35... Nxa4 {[%clk 0:00:03.7]} 36.
Be8 {[%clk 0:00:29.6]} 36... Rxb2+ {[%clk 0:00:03.4]} 37. Kf3 {[%clk 0:00:28.1]}
37... Nb6 {[%clk 0:00:02.8]} 38. Rxf7+ {[%clk 0:00:24.7]} 38... Ke5 {[%clk
0:00:03.5]} 39. Rxg7 {[%clk 0:00:20.1]} 39... a4 {[%clk 0:00:03.9]} 40. Ra7
{[%clk 0:00:20.7]} 40... Ra2 {[%clk 0:00:03.5]} 41. Ke3 {[%clk 0:00:17.5]} 41...
a3 {[%clk 0:00:03.7]} 42. Ra6 {[%clk 0:00:14.9]} 42... Nd5+ {[%clk 0:00:02.1]}
43. Kf3 {[%clk 0:00:11]} 43... Ra1 {[%clk 0:00:02.6]} 44. Bb5 {[%clk 0:00:08.4]}
44... Nb4 {[%clk 0:00:01.2]} 45. Ra5 {[%clk 0:00:08]} 45... a2 {[%clk
0:00:01.8]} 46. Bc4+ {[%clk 0:00:08.2]} 46... Kd4 {[%clk 0:00:02.5]} 47. Bxe6
{[%clk 0:00:08.5]} 47... Kc3 {[%clk 0:00:03.2]} 48. Ra3+ {[%clk 0:00:05.8]}
48... Kb2 {[%clk 0:00:03.5]} 49. Ra8 {[%clk 0:00:05.2]} 49... Nc2 {[%clk
0:00:02.1]} 50. Rb8+ {[%clk 0:00:04.6]} 50... Kc1 {[%clk 0:00:02.5]} 51. Rc8
{[%clk 0:00:04.5]} 51... Kb2 {[%clk 0:00:02.7]} 52. Ra8 {[%clk 0:00:03.6]} 52...
Nb4 {[%clk 0:00:02.4]} 53. Kg4 {[%clk 0:00:03.4]} 53... Kc3 {[%clk 0:00:02.8]}
54. h4 {[%clk 0:00:03.6]} 54... Kb2 {[%clk 0:00:03.3]} 55. f4 {[%clk 0:00:04]}
55... Rc1 {[%clk 0:00:03.4]} 56. Bxa2 {[%clk 0:00:03.1]} 56... Nxa2 {[%clk
0:00:04.3]} 57. Ra6 {[%clk 0:00:02.5]} 57... Nb4 {[%clk 0:00:04.5]} 58. Rxh6
{[%clk 0:00:02.6]} 58... Nd3 {[%clk 0:00:05.4]} 59. Rb6+ {[%clk 0:00:02.7]}
59... Ka3 {[%clk 0:00:05.3]} 60. Rb8 {[%clk 0:00:02.4]} 60... Nf2+ {[%clk
0:00:05.5]} 61. Kf5 {[%clk 0:00:02.6]} 61... Rc5+ {[%clk 0:00:05.5]} 62. Ke6
{[%clk 0:00:02.8]} 62... Ne4 {[%clk 0:00:05.7]} 63. f5 {[%clk 0:00:02.3]} 63...
Nxg3 {[%clk 0:00:05.7]} 64. f6 {[%clk 0:00:02.8]} 64... Rc4 {[%clk 0:00:04.3]}
65. f7 {[%clk 0:00:03]} 65... Re4+ {[%clk 0:00:04.3]} 66. Kd5 {[%clk 0:00:02.8]}
66... Rxh4 {[%clk 0:00:01.1]} 67. f8=Q+ {[%clk 0:00:03.1]} 1-0